{"text_format":"3","workbook":"xlsx","n_sheets":2,"sheets":["Start","Servicefaktura"],"not_rendered":{"images":1,"defined_names":1},"read":"whole","date_system":"1900"}

{"sheet":"Start","index":0,"n_rows":8,"n_cols":2,"rows_kept":8}
[null,"OM DENNE MALEN"]
[null,"Bruk denne malen til å opprette en enkel tjenestefaktura."]
[null,"Fyll ut fakturanummer, dato, firmanavn, adresse, slagord og fakturer til-detaljer."]
[null,"Skriv inn informasjon i tabeller."]
[null,"Totalen beregnes automatisk."]
[null,"Obs! "]
[null,"Flere instruksjoner er angitt i kolonne A i regnearket TJENESTEFAKTURA. Denne teksten er skjult med hensikt. Hvis du vil fjerne teksten, velger du kolonne A og deretter SLETT. Hvis du vil vise teksten, velger du kolonne A og endrer deretter skriftfarge."]
[null,"Hvis du vil finne ut mer om tabeller, trykker du på SKIFT og deretter på F10 i en tabell. Velg alternativet TABELL, og velg deretter ALTERNATIV TEKST."]

{"sheet":"Servicefaktura","index":1,"n_rows":44,"n_cols":5,"rows_kept":44,"merged":[[0,1,0,2],[0,3,0,4],[2,1,2,3],[3,1,3,3],[4,1,4,2],[5,1,5,2],[6,1,6,2],[7,1,7,2],[41,1,41,2],[41,3,41,4],[43,1,43,4]]}
[null,"Du finner plassholder for logo i denne cellen.",null,"FAKTURA"]
[]
[null,"Firmanavn"]
[null,"Firmaslagord"]
[null,"Gateadresse",null,"FAKTURANR.","Nr."]
[null,"Postnummer, poststed",null,"DATO ",{"$f":"TODAY()","v":"2022-05-07"}]
[null,"Telefon Faks",null,"KUNDE-ID ","ID"]
[null,"E-post"]
[null,"TIL","Navn"]
[null,null,"Firmanavn"]
[null,null,"Gateadresse"]
[null,null,"Postnummer, poststed"]
[null,null,"Telefon"]
[null,"SELGER","STILLING","BETALINGSVILKÅR","FORFALLSDATO"]
[{"$nulls":3},"Forfaller ved mottak"]
[]
[null,"ANTALL","BESKRIVELSE","ENHETSPRIS","LINJETOTAL"]
[{"$nulls":4},{"$f":"IF(SUM(B18)>0,SUM(B18*Servicefaktura!$D18),\"\")","v":""}]
[{"$nulls":4},{"$f":"IF(SUM(B19)>0,SUM(B19*Servicefaktura!$D19),\"\")","v":""}]
[{"$nulls":4},{"$f":"IF(SUM(B20)>0,SUM(B20*Servicefaktura!$D20),\"\")","v":""}]
[{"$nulls":4},{"$f":"IF(SUM(B21)>0,SUM(B21*Servicefaktura!$D21),\"\")","v":""}]
[{"$nulls":4},{"$f":"IF(SUM(B22)>0,SUM(B22*Servicefaktura!$D22),\"\")","v":""}]
[{"$nulls":4},{"$f":"IF(SUM(B23)>0,SUM(B23*Servicefaktura!$D23),\"\")","v":""}]
[{"$nulls":4},{"$f":"IF(SUM(B24)>0,SUM(B24*Servicefaktura!$D24),\"\")","v":""}]
[{"$nulls":4},{"$f":"IF(SUM(B25)>0,SUM(B25*Servicefaktura!$D25),\"\")","v":""}]
[{"$nulls":4},{"$f":"IF(SUM(B26)>0,SUM(B26*Servicefaktura!$D26),\"\")","v":""}]
[{"$nulls":4},{"$f":"IF(SUM(B27)>0,SUM(B27*Servicefaktura!$D27),\"\")","v":""}]
[{"$nulls":4},{"$f":"IF(SUM(B28)>0,SUM(B28*Servicefaktura!$D28),\"\")","v":""}]
[{"$nulls":4},{"$f":"IF(SUM(B29)>0,SUM(B29*Servicefaktura!$D29),\"\")","v":""}]
[{"$nulls":4},{"$f":"IF(SUM(B30)>0,SUM(B30*Servicefaktura!$D30),\"\")","v":""}]
[{"$nulls":4},{"$f":"IF(SUM(B31)>0,SUM(B31*Servicefaktura!$D31),\"\")","v":""}]
[{"$nulls":4},{"$f":"IF(SUM(B32)>0,SUM(B32*Servicefaktura!$D32),\"\")","v":""}]
[{"$nulls":4},{"$f":"IF(SUM(B33)>0,SUM(B33*Servicefaktura!$D33),\"\")","v":""}]
[{"$nulls":4},{"$f":"IF(SUM(B34)>0,SUM(B34*Servicefaktura!$D34),\"\")","v":""}]
[{"$nulls":4},{"$f":"IF(SUM(B35)>0,SUM(B35*Servicefaktura!$D35),\"\")","v":""}]
[{"$nulls":4},{"$f":"IF(SUM(B36)>0,SUM(B36*Servicefaktura!$D36),\"\")","v":""}]
[{"$nulls":4},{"$f":"IF(SUM(B37)>0,SUM(B37*Servicefaktura!$D37),\"\")","v":""}]
[{"$nulls":3},"DELSUM",{"$f":"IF(SUM(E18:E37)>0,SUM(E18:E37),\"\")","v":""}]
[{"$nulls":3},"MERVERDIAVGIFT"]
[{"$nulls":3},"TOTAL",{"$f":"IF(SUM(E38)>0,SUM((E38*E39)+E38),\"\")","v":""}]
[]
[null,"Alle sjekker utstedes til",null,{"$f":"B3","v":"Firmanavn"}]
[]
[null,"TAKK FOR HANDELEN!"]